Cogmind - Beta 9.6 @@@ ROGUE MODE // 2020.08.29 @ 01:28:53 Player: scoobysnack1 Result: Destroyed by as-57571 with Assembled Heavy Rifle Performance ------------- Evolutions (0) 0 Regions Visited (2) 400 Robots Destroyed (47) 235 Value Destroyed (855) 855 Prototype IDs (2) 40 Alien Tech Used (0) 0 Bonus (0) 0 TOTAL SCORE: 1530 Bonus ------- None Cogmind --------- Core Integrity 0/250 Matter 186/300 Energy 125/125 System Corruption 0% Temperature Cool (0) Movement Rolling (90) Location -10/Mines Parts ------- > --- POWER (1) -------- Light Ion Engine > --- PROPULSION (2) --- Light Treads Armored Wheel > --- UTILITY (2) ------ (None) > --- WEAPON (2) ------- (None) > --- INVENTORY (4) ---- Improved Heat Sink Core Shielding Shield Generator EM Pulse Gun Peak State ------------ > --- POWER ------------ Ion Engine > --- PROPULSION ------- Armored Wheel Armored Wheel > --- UTILITY ---------- Shield Generator Hacking Suite > --- WEAPON ----------- Beam Cannon Mini Grenade Launcher > --- INVENTORY -------- Improved Heat Sink Small Storage Unit Mini Grenade Launcher Datajack [Rating: 13] Favorites ----------- Power Ion Engine Engine Ion Engine Propulsion Armored Wheel Treads Light Treads Leg Aluminum Leg Wheel Armored Wheel Utility Shield Generator Device Shield Generator Storage Small Storage Unit Processor Visual Processing Unit Hackware Hacking Suite Protection Light Armor Plating Weapon Beam Cannon Energy Gun Small Laser Energy Cannon Beam Cannon Ballistic Gun Assault Rifle Launcher Mini Grenade Launcher Build | -11 -10 -10 ------- Run | Scr Mat Min Slots Evolved . | . . . Power . | . . . Propulsion . | . . . Utility . | . . . Weapon . | . . . Parts Attached 47 | 15 25 7 Power 5 | 2 2 1 Engine 5 | 2 2 1 Core . | . . . Reactor . | . . . Propulsion 13 | 7 5 1 Treads 1 | . . 1 Leg 7 | 5 2 . Wheel 5 | 2 3 . Hover . | . . . Flight . | . . . Utility 11 | 2 7 2 Device 6 | 1 4 1 Storage 1 | . 1 . Processor 2 | 1 1 . Hackware 1 | . 1 . Protection 1 | . . 1 Artifact . | . . . Weapon 18 | 4 11 3 Energy Gun 5 | 1 4 . Energy Cannon 2 | . 2 . Ballistic Gun 8 | 3 3 2 Ballistic Cannon . | . . . Launcher 3 | . 2 1 Special Weapon . | . . . Impact Weapon . | . . . Slashing Weapon . | . . . Piercing Weapon . | . . . Special Melee Weapon . | . . . Unidentified Prototypes . | . . . Parts Lost 9 | . 4 5 Power 1 | . . 1 Propulsion 1 | . . 1 Utility 2 | . 1 1 Weapon 5 | . 3 2 Highest Loss Streak 2 | . 1 2 Average Slot Usage (%) 96 | . 97 94 Engine 13 | . 14 13 Treads 1 | . . 5 Leg 8 | . 11 . Wheel 17 | . 16 22 Device 12 | . 13 12 Storage 2 | . 3 . Processor 2 | . 3 . Hackware 6 | . 6 6 Protection 1 | . . 4 Energy Gun 7 | . 9 . Energy Cannon 7 | . 7 7 Ballistic Gun 8 | . 5 15 Launcher 4 | . 4 5 Naked Turns . | . . . Heaviest Build 15 | 9 15 14 Greatest Support 24 | 20 24 24 Greatest Overweight (x) 1 | . 1 1 Average Overweight (x) . | . . . Largest Inventory Capacity 6 | 4 6 4 Average Capacity 4 | 4 4 4 Most Carried 6 | 4 6 4 Average Carried 4 | 2 4 3 Final Capacity 4 | 4 4 4 Final Carried 4 | 3 4 4 Class Distribution -------------------- 61% | Mutant 38% | Scavenger-Mutant Dominant Class ---------------- Mutant | -10/Materials Mutant | -10/Mines Resources | -11 -10 -10 ----------- Run | Scr Mat Min Matter Collected 945 | 332 470 143 Remotely . | . . . Salvage Created 1251 | 116 893 242 Parts 86 | 17 54 15 Haulers Intercepted 2 | . 2 . Recyclers Shooed 6 | . 5 1 Parts Field Recycled . | . . . Retrieved Matter . | . . . Parts Self-Destructed . | . . . Prevented . | . . . Kills | -11 -10 -10 ------- Run | Scr Mat Min Combat Hostiles Destroyed 31 | 1 16 14 Guns 12 | 1 9 2 Cannons 6 | . 3 3 AOE 13 | . 4 9 Classes Destroyed 11 | 3 6 2 Worker 2 | 1 1 . Builder 1 | . 1 . Tunneler 3 | 3 . . Hauler 2 | . 2 . Recycler 3 | . 2 1 Operator 2 | . 2 . Watcher 3 | . 3 . Swarmer 7 | . 3 4 Grunt 14 | 1 13 . Sentry 2 | . . 2 Assembled 8 | . . 8 Best Kill Streak 7 | 4 3 7 Combat Bots Only 7 | 1 3 7 Max Kills in Single Turn 2 | 1 2 2 Gunslinging 1 | . 1 . Exploded 2 | . 1 2 Melee . | . . . Uniques/NPCs Destroyed . | . . . Combat | -11 -10 -10 -------- Run | Scr Mat Min Damage Taken 1504 | . 798 706 Core 263 | . 121 142 Absorbed by Shields 193 | . 95 98 Core Remaining (%) 100 | 100 . . Volleys Fired 131 | 12 84 35 Largest 2 | 2 2 2 Hottest 100 | 40 100 80 Shots Fired 213 | 21 129 63 Gun 144 | 21 85 38 Cannon 48 | . 31 17 Launcher 21 | . 13 8 Special . | . . . Kinetic 94 | 21 35 38 Thermal 80 | . 63 17 Explosive 21 | . 13 8 Electromagnetic 18 | . 18 . Robot Hit Streak 10 | 6 10 9 Robot Miss Streak 6 | 2 3 6 Penetration Max . | . . . Secondary Targets 2 | . 2 . Max Gunslinging Chain 1 | . 1 . Shots Hit Robots 132 | 13 87 32 Core Hits 74 | 5 43 26 Critical Hits 1 | . 1 . Critical Kills . | . . . Critical Parts Destroyed 1 | . 1 . Melee Attacks . | . . . Impact . | . . . Slashing . | . . . Piercing . | . . . Sneak Attacks . | . . . Combat Hostiles . | . . . Follow-up Attacks . | . . . Damage Inflicted 2761 | 155 1600 1006 Guns 1088 | 155 689 244 Cannons 550 | . 354 196 Explosions 1123 | . 557 566 Melee . | . . . Ramming . | . . . Kinetic 656 | 155 257 244 Thermal 822 | . 626 196 Explosive 1077 | . 511 566 Electromagnetic 206 | . 206 . Impact . | . . . Slashing . | . . . Piercing . | . . . Highest Corruption . | . . . Average Corruption . | . . . Corruption Purged . | . . . Overload Shots . | . . . Overflow Damage 122 | . 97 25 Projectiles 23 | . 7 16 Explosions 99 | . 90 9 Melee . | . . . Knockbacks . | . . . Impact . | . . . Kinetic . | . . . Secondary . | . . . Self-Inflicted Damage 209 | . 180 29 Shots 9 | . 7 2 Rammed . | . . . Targets Rammed . | . . . Kicked . | . . . Crushed . | . . . Highest Temperature 216 | . 216 185 Average Temperature 70 | . 63 90 Received Heat Transfer 444 | . 360 84 Effects 2 | . 2 . Interference 2 | . 2 . Siege Activations . | . . . Robots Corrupted . | . . . Combat Hostiles . | . . . Parts Fried . | . . . Impact Corruptions . | . . . Robots Melted . | . . . Combat Hostiles . | . . . Parts Melted 3 | . 3 . Heat Transferred 1743 | . 1336 407 Parts Sabotaged . | . . . Parts Stolen . | . . . Parts Stripped . | . . . Power Chain Reactions 1 | . 1 . Missiles Intercepted . | . . . Alert | -11 -10 -10 ------- Run | Scr Mat Min Peak Influence 262 | 40 262 203 Average Influence 136 | 11 166 100 Maximum Alert Level 1 | . 1 1 Low Security (%) 72 | 100 66 77 Level 1 27 | . 33 22 Level 2 . | . . . Level 3 . | . . . Level 4 . | . . . Level 5 . | . . . High Security . | . . . Max Security . | . . . Squads Dispatched 4 | . 4 . Investigation 1 | . 1 . Extermination . | . . . Reinforcement 3 | . 3 . Assault . | . . . Garrison . | . . . Intercept . | . . . Construction Impeded . | . . . Haulers Reinforced . | . . . Stealth | -11 -10 -10 --------- Run | Scr Mat Min Distress Signals 2 | . 2 . Communications Jammed . | . . . Distress Signals . | . . . Times Spotted 48 | 1 24 23 Peak Tracking Total 8 | 1 3 8 Tactical Retreats 4 | . . 4 Traps | -11 -10 -10 ------- Run | Scr Mat Min Traps Triggered 1 | . 1 . Indirectly . | . . . Trap Hack Attempts . | . . . Triggered . | . . . Disarmed . | . . . Reprogrammed . | . . . Reused . | . . . Traps Extracted . | . . . Installed . | . . . Triggered . | . . . Machines | -11 -10 -10 ---------- Run | Scr Mat Min Machines Disabled 7 | . 4 3 Max in Single Turn 2 | . 1 2 Machines Sabotaged . | . . . Garrisons Compromised . | . . . Overloaded Fab Kills . | . . . Fab Network Shutdowns . | . . . Hacking | -11 -10 -10 --------- Run | Scr Mat Min Machines Accessed 7 | . 7 . Terminals 4 | . 4 . Fabricators . | . . . Repair Stations 1 | . 1 . Recycling Units 2 | . 2 . Scanalyzers . | . . . Garrison Access . | . . . Total Hacks 22 | . 22 . Successful 18 | . 18 . Failed 4 | . 4 . Catastrophic . | . . . Database Lockouts . | . . . Manual . | . . . Terminals 10 | . 10 . Fabricators . | . . . Repair Stations 6 | . 6 . Recycling Units 6 | . 6 . Scanalyzers . | . . . Garrison Access . | . . . Terminal Hacks 8 | . 8 . Record 3 | . 3 . Robot Analysis 1 | . 1 . Prototype ID Bank 1 | . 1 . Alert Level 1 | . 1 . Locate Traps 1 | . 1 . Zone Layout 1 | . 1 . Fabricator Hacks . | . . . Repair Station Hacks 5 | . 5 . Scan Component 2 | . 2 . Repair 2 | . 2 . Refit 1 | . 1 . Recycling Unit Hacks 5 | . 5 . Process 1 | . 1 . Report Inventory 2 | . 2 . Retrieve Matter 2 | . 2 . Scanalyzer . | . . . Garrison Access Hacks . | . . . Unauthorized Hacks . | . . . Terminals . | . . . Fabricators . | . . . Repair Stations . | . . . Recycling Units . | . . . Scanalyzers . | . . . Garrison Access . | . . . Data Cores Recovered . | . . . Used . | . . . Hacking Detections 5 | . 5 . Full Trace Events . | . . . Feedback Events . | . . . Feedback Blocked . | . . . Robot Schematics Acquired . | . . . Robots Built . | . . . Matter . | . . . Time . | . . . Total Robot Build Rating . | . . . Part Schematics Acquired . | . . . Parts Built . | . . . Matter . | . . . Time . | . . . Total Part Build Rating . | . . . Parts Repaired 2 | . 2 . Time 58 | . 58 . Parts Recycled . | . . . Recycled Matter 144 | . 144 . Retrieved Matter 354 | . 354 . Retrieved Components . | . . . Parts Scanalyzed . | . . . Part Schematics Acquired . | . . . Parts Damaged . | . . . Bothacking | -11 -10 -10 ------------ Run | Scr Mat Min Used RIF Installer . | . . . Robots Hacked . | . . . Non-combat . | . . . Combat . | . . . Robot Hacks Applied . | . . . Relay Couplers Released . | . . . Robots Rewired . | . . . Allies Hacked . | . . . Hacks Repelled . | . . . Allies | -11 -10 -10 -------- Run | Scr Mat Min Total Allies . | . . . Largest Group . | . . . Highest-Rated Group . | . . . Highest-Rated Ally . | . . . Total Orders . | . . . Ally Attacks . | . . . Total Damage . | . . . Kills . | . . . Allies Corrupted . | . . . Allies Melted . | . . . Intel | -11 -10 -10 ------- Run | Scr Mat Min Robot Analysis Total 1 | . 1 . Derelict Logs Recovered 1 | . . 1 Drone Launches . | . . . Drone Recoveries . | . . . Exploration | -11 -10 -10 ------------- Run | Scr Mat Min Turns Passed 1982 | 179 1305 498 Spaces Moved 1405 | 132 950 323 Core 18 | 18 . . Treads 45 | . . 45 Legs 345 | 46 299 . Wheels 997 | 68 651 278 Hover . | . . . Flight . | . . . Fastest Speed 50 | 50 90 90 Average Speed 98 | 89 99 101 Slowest Speed 160 | 120 120 160 Overloaded Moves . | . . . Propulsion Burnouts . | . . . Robots Hopped . | . . . Cave-ins Triggered . | . . . Exploration Rate (%) 50 | 6 86 58 Regions Visited 2 Branch Regions 1 Pre-discovered Areas . | . . . Known Exits Taken . | . . . Unknown Exits Taken 2 | 1 1 . Scrap Searched 1 | . . 1 Spaces Dug 11 | . . 11 Terrain Destroyed 161 | . 95 66 Melee . | . . . Projectile . | . . . AOE 161 | . 95 66 Actions | -11 -10 -10 --------- Run | Scr Mat Min Total 1791 | 169 1191 431 Wait 135 | . 76 59 Move 1403 | 131 949 323 Hop . | . . . Pick Up 29 | 5 23 1 Fast Attach 24 | 7 13 4 Attach 8 | 3 5 . Detach 6 | 3 1 2 Swap 15 | 5 7 3 Drop 40 | 3 33 4 Fire 131 | 12 84 35 Melee . | . . . Ram . | . . . Kick . | . . . Crush . | . . . Escape Stasis . | . . . Rewire . | . . . Trap . | . . . Miscellaneous . | . . . Route ------- -11/Scrapyard -10/Materials (discovered 4 exits: [*Mat x2] / [*Min x2]) -10/Mines (discovered 1 exit: [*Mat]) History --------- Turn | Location | Event 2 | -11/Scrapyard | Met Revision 17 117 | -11/Scrapyard | Discovered new exit (range 8) 180 | -11/Scrapyard | Entered Materials 334 | -10/Materials | Build established: Scavenger-Mutant 459 | -10/Materials | Discovered new exit (range 4) 562 | -10/Materials | Discovered new exit (range 10) 618 | -10/Materials | Discovered new exit (range 13) 927 | -10/Materials | Build established: Mutant 1288 | -10/Materials | Repaired Arm. Wheel 1315 | -10/Materials | Repaired Beam Cannon 1345 | -10/Materials | Discovered new exit (range 16) 1485 | -10/Materials | Entered Mines 1625 | -10/Mines | Core integrity fell below 50% 1694 | -10/Mines | Discovered new exit (range 8) 1697 | -10/Mines | Learned Materials stockpile data 1723 | -10/Mines | Received a Rocket Launcher from a helpful Derelict 1842 | -10/Mines | Assembled infested the area 1873 | -10/Mines | Core integrity fell below 20% 1912 | -10/Mines | Destroyed 7 combat bots 1983 | -10/Mines | Destroyed by as-57571 with Assembled Heavy Rifle Last Messages --------------- Dropped Structural Scanner. K-01 Serf destroyed. as-47634 destroyed. as-41167 destroyed. Acquired 10 matter. The unstable cave ceiling collapses. U-05 Engineer lays Concrete. U-05 Engineer builds a Wall. U-05 Engineer lays Concrete. Dropped Rocket Launcher. Acquired Assault Rifle. U-05 Engineer builds a Wall. Knocked back. as-81348 destroyed. Lgt. Armor Plating destroyed. U-05 Engineer builds a Wall. U-05 Engineer destroyed. Assault Rifle destroyed. Critical hit. Hvy. Assault Rifle destroyed. Map ----- +----------------------------------------------------+ | | | | | | | | | | | | | | | | | | | | | | | | | | | | | | | | | | | | | ??????????????????????????????????????????????? | | ???????????????????????????###????????????????? | | ???????????????????#####???# ##?####??????????? | | ??????????????????## ##### ### #??????????? | | ?????????????###### ## # #] ##?????????? | | ????????????## ## = # #?????????? | | ??????####### #!%| /] #?????????? | | ?????## # # ### @ a#!* / ##?????????? | | ????## #?## a ! # ##?????????? | | ???## #??## ## # ###########? | | ???# #???########### #? | | ???# ##??????????## # ######### #? | | ???# #???????????########???????#%## | | ???## #??????????????????????????# | | ????# ##??????????????????????????# ## | | ???# #??????????????????????????# #? | | ???# #?????????????????????????? #? | | ???# #?????????????????????????####? | | ??# ##???????????????????????????### | | ??## #??????????????????????????### | | ??## * ##?????????????????????????## | | ??# ! #######??????????????????????????# | | ??# ! #???????????????????????????????# | | ??# ###???????????????????????????# # | | ??## % #??????????????????????????# ## | | ???# % ## #?????????????????????????# ?? | | ???# ## #####?????????????????????# #?# | | ???# ! ! ??????????????# #?# | | ??? !! ??????????????## #??? | | ???# ############# #??????????????????# #????? | | ???# #????????????????????????????????# ?????? | | ??# #???????????????????????????????? ??????? | +----------------------------------------------------+ Best States ------------- Heat Dissipation 39 Energy Generation 10 Energy Capacity 250 Matter Stores 300 Matter Capacity 300 Sight Range 18 Terrain Scan Range 16 Terrain Scan Density 60 Armor Coverage 150 Evasion (%) 50 Recoil Reduction 1 Offensive Hacking 10 Item Schematics ----------------- None Robot Schematics ------------------ None Fabricated ------------ Nothing Alien Tech Used ----------------- None Achievements -------------- Crack Shot Hey, That's Mine! Part-time Mechanic Storm Trooper Challenges ------------ None Game ------ Seed MeleeUtilityCharger Manual? 0 Play Time 01:11:17 Cumulative 3.9 hours Start 2020.08.29 @ 00:06:18 End 2020.08.29 @ 01:28:53 Sessions 1 Manual Loads 0 Difficulty Rogue Special Mode None Game No. 2 Rogue 2 Adventurer 0 Explorer 0 Win Type - Total 0 Types 0/0/0/0/0/0/0 Lore% 2 Gallery% 3 Achievement% 3 Wizard Run 0 Options --------- ASCII 0 Keyboard 0 Movement Mouse Keybinds 0 Fullscreen 1 Font 18/SmallcapsGlow Map View 76x50 Tactical HUD 0 Map Filters NONE Filters NONE Steam 1 RUN: a48bcc18-2ff9-4159-a1df-cf795934a9d4